bitfinex-derivatives/quotes_BTCF0:USTF0_20240817
["timestamp","ask_amount","ask_price","bid_price","bid_amount"]
[1723856137645,0.0458,59248.0,59247.0,0.084365]
[1723856139141,0.0478,59248.0,59247.0,0.085365]
[1723856139345,0.002,59248.0,59247.0,0.085365]
[1723856139647,0.002,59248.0,59247.0,0.13512455]
[1723856139951,0.002,59248.0,59247.0,0.085365]
[1723856140170,0.007,59248.0,59247.0,0.086365]
[1723856140842,0.007,59248.0,59247.0,0.085365]
[1723856141041,0.005,59248.0,59247.0,0.084365]
[1723856141242,0.006,59248.0,59247.0,0.084365]
[1723856141552,0.005,59248.0,59247.0,0.084365]
[1723856141753,0.00025325,59250.0,59249.0,0.084363]
[1723856141950,0.00025325,59250.0,59249.0,0.13416027]
[1723856142146,0.00025325,59250.0,59249.0,0.15070907]
[1723856142451,0.00025325,59250.0,59249.0,0.084363]
[1723856143351,0.00025325,59250.0,59249.0,0.990683]
[1723856144253,0.00025325,59250.0,59249.0,0.993683]
[1723856144749,0.0495,59256.0,59255.0,0.084354]
[1723856144954,0.0495,59256.0,59255.0,0.737854]
[1723856146150,0.001,59256.0,59255.0,0.737854]
[1723856146342,0.0488,59264.0,59263.0,0.084343]
[1723856146550,0.0488,59264.0,59263.0,0.737843]
[1723856147257,0.0488,59264.0,59263.0,0.3608]
[1723856147455,0.0498,59264.0,59263.0,0.3618]
[1723856147947,0.134141,59264.0,59263.0,0.3618]
[1723856148458,0.134141,59264.0,59263.0,0.3628]
[1723856149651,0.134141,59264.0,59263.0,0.002]
[1723856153156,0.0498,59264.0,59263.0,0.002]
[1723856154671,0.0498,59264.0,59263.0,0.086343]
[1723856157858,0.04930875,59284.0,59263.0,0.77822684]
[1723856158061,0.0477,59278.0,59277.0,0.084323]
[1723856158249,0.0477,59278.0,59277.0,0.445123]
[1723856160150,0.0477,59278.0,59277.0,0.45659443]
[1723856160454,0.0487,59278.0,59277.0,0.3628]
[1723856160660,0.133021,59278.0,59277.0,0.3628]
[1723856160862,0.133021,59278.0,59277.0,0.3618]
[1723856161053,0.132021,59278.0,59277.0,0.3608]
[1723856163260,0.0477,59278.0,59277.0,0.3608]
[1723856165865,0.0477,59278.0,59275.0,0.084325]
[1723856166350,0.0477,59278.0,59275.0,0.09539447]
[1723856167160,4e-05,59276.0,59275.0,0.09539447]
[1723856168850,0.22004,59276.0,59275.0,0.09539447]
[1723856169958,0.58084,59276.0,59272.0,0.00025301]
[1723856170159,0.084328,59273.0,59272.0,0.01122164]
[1723856170365,0.444328,59273.0,59272.0,0.01122164]
[1723856170766,4e-05,59276.0,59272.0,0.01122164]
[1723856171065,0.38004,59276.0,59273.0,0.084328]
[1723856171263,0.464324,59276.0,59272.0,0.01122164]
[1723856171461,0.084326,59275.0,59272.0,0.01122164]
[1723856171667,0.484326,59275.0,59272.0,0.01122164]
[1723856172065,0.4,59275.0,59272.0,0.01122164]
[1723856172259,0.4,59275.0,59273.0,0.084328]
[1723856173764,0.084327,59274.0,59272.0,0.37202164]
[1723856173958,0.084327,59274.0,59272.0,0.01122164]
[1723856173959,0.4,59274.0,59272.0,0.01122164]
[1723856174358,0.084328,59273.0,59272.0,0.00025301]
[1723856174557,0.484328,59273.0,59272.0,0.00025301]
[1723856174964,0.56789627,59273.0,59272.0,0.00025301]
[1723856175267,0.51170872,59273.0,59272.0,0.00025301]
[1723856176263,0.084341,59265.0,59260.0,0.3608]
[1723856176459,0.1443,59264.0,59260.0,0.37219754]
[1723856177763,4e-05,59261.0,59260.0,0.37219754]
[1723856180358,4e-05,59261.0,59260.0,0.40932414]
[1723856180560,4e-05,59261.0,59260.0,0.37219754]
[1723856180865,0.06733811,59261.0,59260.0,0.37219754]
[1723856181061,4e-05,59261.0,59260.0,0.37219754]
[1723856181664,0.10004,59261.0,59260.0,0.01139754]
[1723856181966,0.10004,59261.0,59258.0,0.04988533]
[1723856182270,0.184386,59261.0,59258.0,0.04988533]
[1723856182460,0.084347,59260.0,59258.0,0.04988533]
[1723856182969,0.084347,59260.0,59257.0,0.04988533]
[1723856183269,0.084347,59260.0,59256.0,0.01169913]
[1723856183270,4e-05,59261.0,59258.0,0.08701712]
[1723856183468,4e-05,59261.0,59259.0,0.03713179]
[1723856183657,4e-05,59261.0,59258.0,0.04988533]
[1723856183863,4e-05,59261.0,59259.0,0.08701566]
[1723856184170,4e-05,59261.0,59258.0,0.04988533]
[1723856184468,4e-05,59261.0,59259.0,0.07426]
[1723856184770,4e-05,59261.0,59260.0,0.08701421]
[1723856184965,4e-05,59261.0,59260.0,0.3608]
[1723856185160,4e-05,59261.0,59260.0,0.4350562]
[1723856185362,4e-05,59261.0,59260.0,0.3608]
[1723856185872,4e-05,59261.0,59260.0,0.43505935]
[1723856186064,4e-05,59261.0,59260.0,0.3608]
[1723856186468,4e-05,59261.0,59260.0,0.39792914]
[1723856187064,0.12004,59261.0,59260.0,0.3608]
[1723856187372,0.12004,59261.0,59260.0,0.39792975]
[1723856187972,0.12004,59261.0,59260.0,0.43505915]
[1723856188272,0.12004,59261.0,59260.0,0.39792975]
[1723856188467,0.12004,59261.0,59260.0,0.4350594]
[1723856189678,0.12004,59261.0,59260.0,0.07425961]
[1723856191673,0.204385,59261.0,59260.0,0.07425961]
[1723856191972,0.204385,59261.0,59258.0,0.04986408]
[1723856192175,0.204385,59261.0,59259.0,0.07426228]
[1723856192480,0.204385,59261.0,59260.0,0.07426228]
[1723856193470,0.204385,59261.0,59260.0,0.03713114]
[1723856194070,0.08435,59258.0,59256.0,0.01169913]
[1723856194290,0.084351,59257.0,59256.0,0.01169913]
[1723856194577,0.314351,59257.0,59256.0,0.08596617]
[1723856195363,0.314391,59257.0,59256.0,0.08596617]
[1723856197570,0.314391,59257.0,59256.0,0.01169913]
[1723856205470,0.314391,59257.0,59256.0,0.04883282]
[1723856205685,0.314391,59257.0,59256.0,0.08596651]
[1723856207489,0.314391,59257.0,59256.0,0.04883282]
[1723856208384,0.314391,59257.0,59256.0,0.08596651]
[1723856208783,0.314391,59257.0,59256.0,0.04883282]
[1723856209180,0.314391,59257.0,59256.0,0.08596651]
[1723856210595,0.314391,59257.0,59256.0,0.04883281]
[1723856210888,0.314391,59257.0,59256.0,0.15227401]
[1723856211089,0.38170831,59257.0,59256.0,0.03738669]
[1723856211280,0.084354,59255.0,59253.0,0.04996177]
[1723856211591,0.084357,59253.0,59252.0,0.01105332]
[1723856211789,0.084358,59252.0,59251.0,0.04996177]
[1723856211986,0.50098626,59252.0,59251.0,0.04996177]
[1723856212495,0.433558,59252.0,59251.0,0.01131895]
[1723856212792,0.08436,59251.0,59250.0,0.04996177]
[1723856212994,0.29436,59251.0,59249.0,0.04996177]
[1723856213383,0.29436,59251.0,59248.0,0.04996177]
[1723856213689,0.084363,59249.0,59247.0,0.01102755]
[1723856213884,0.084363,59249.0,59246.0,0.00025301]
[1723856214084,0.084363,59249.0,59247.0,0.03713911]
[1723856214387,0.084363,59249.0,59248.0,0.08706986]
[1723856214595,0.084363,59249.0,59246.0,0.01161792]
[1723856214596,0.084365,59248.0,59246.0,0.00025301]
[1723856214893,0.294365,59248.0,59247.0,0.03713998]
[1723856217393,0.294365,59248.0,59247.0,0.0870561]
[1723856217985,0.294365,59248.0,59247.0,0.03713998]
[1723856218492,0.084365,59247.0,59246.0,0.00025301]
[1723856218681,0.434365,59247.0,59246.0,0.00025301]
[1723856218904,0.940725,59247.0,59246.0,0.00025301]
[1723856219090,0.084374,59241.0,59240.0,0.3608]
[1723856219280,0.184374,59241.0,59240.0,0.3608]
[1723856220190,0.184374,59241.0,59240.0,0.37225221]
[1723856220387,0.184414,59241.0,59240.0,0.40939627]
[1723856222198,0.184414,59241.0,59240.0,0.37225221]
[1723856222799,0.184414,59241.0,59240.0,0.01145221]
[1723856222990,0.084381,59236.0,59235.0,0.05017511]
[1723856223190,0.084381,59236.0,59235.0,0.07454207]
[1723856223500,0.084381,59236.0,59235.0,0.00025301]
[1723856223902,0.084381,59236.0,59235.0,0.01137178]
[1723856224194,0.094421,59236.0,59235.0,0.01137178]
[1723856224584,0.084421,59236.0,59235.0,0.01137178]
[1723856225294,0.264421,59236.0,59235.0,0.00025301]
[1723856225992,0.770861,59236.0,59235.0,0.00025301]
[1723856226700,0.264421,59236.0,59235.0,0.00025301]
[1723856226896,0.770861,59236.0,59235.0,0.00025301]
[1723856228001,0.0844,59223.0,59222.0,0.04983165]
[1723856228198,0.084404,59221.0,59215.0,0.084411]
[1723856228399,0.084404,59220.0,59215.0,0.084411]
[1723856228994,0.284404,59220.0,59215.0,0.084411]
[1723856229202,0.284404,59220.0,59219.0,0.01122453]
[1723856229405,0.284444,59220.0,59219.0,0.00017929]
[1723856236313,0.20004,59220.0,59219.0,0.00017929]
[1723856236503,0.20004,59220.0,59219.0,0.08458429]
[1723856237008,0.00025325,59225.0,59219.0,0.08458429]
[1723856237009,0.00025325,59225.0,59224.0,0.084398]
[1723856237210,0.01025325,59225.0,59224.0,0.951758]
[1723856239214,0.01025325,59225.0,59224.0,0.96284621]
[1723856240711,0.01025325,59225.0,59224.0,1.01267786]
[1723856240917,0.01025325,59225.0,59224.0,0.96284621]
[1723856242315,0.01025325,59225.0,59224.0,0.50611786]
[1723856243805,0.01025325,59225.0,59224.0,0.45628621]
[1723856245617,0.01025325,59225.0,59224.0,0.50611786]
[1723856246021,0.01025325,59225.0,59224.0,0.45628621]
[1723856246315,0.00928121,59225.0,59224.0,0.50611786]
[1723856246516,0.00928121,59225.0,59224.0,0.45628621]
[1723856246714,0.06736444,59253.0,59224.0,1.92290127]
[1723856246914,0.3261,59256.0,59243.0,0.3608]
[1723856246915,0.0949,59248.0,59243.0,0.3608]
[1723856248113,0.0949,59248.0,59243.0,0.44517]
[1723856248514,0.0949,59248.0,59243.0,0.44287]
[1723856248911,0.0949,59248.0,59247.0,0.084365]
[1723856254028,0.1049,59248.0,59247.0,0.084365]
[1723856254420,0.0949,59248.0,59247.0,0.084365]
[1723856255018,0.2649,59248.0,59242.0,0.3608]
[1723856256226,4e-05,59243.0,59242.0,0.3608]
[1723856257030,0.22004,59243.0,59242.0,0.3608]
[1723856258732,0.22004,59243.0,59241.0,0.084374]
[1723856259830,0.22004,59243.0,59240.0,0.01127147]
[1723856260030,4e-05,59242.0,59240.0,0.01127147]
[1723856260227,0.11004,59242.0,59240.0,0.01127147]
[1723856260821,0.590774,59241.0,59240.0,0.00025325]
[1723856261026,0.85644,59241.0,59229.0,0.3608]
[1723856261336,0.084388,59232.0,59229.0,0.3608]
[1723856261531,0.226688,59231.0,59229.0,0.37179653]
[1723856261727,0.1423,59231.0,59229.0,0.37179653]
[1723856262122,0.08439,59230.0,59229.0,0.37179653]
[1723856262330,0.08443,59230.0,59229.0,0.37179653]
[1723856262631,0.08443,59230.0,59229.0,0.3608]
[1723856262632,0.09443,59230.0,59229.0,0.3608]
[1723856262827,0.08443,59230.0,59229.0,0.3608]
[1723856264934,0.08443,59230.0,59228.0,0.01098973]
[1723856265137,0.08443,59230.0,59228.0,0.3608]
[1723856265321,0.08443,59230.0,59225.0,0.084396]
[1723856265526,0.08443,59230.0,59228.0,0.3608]
[1723856265731,0.08443,59230.0,59224.0,0.00025325]
[1723856265732,0.084394,59227.0,59224.0,0.00025325]
[1723856265934,0.084394,59227.0,59224.0,0.01143516]
[1723856266930,4e-05,59225.0,59224.0,0.01143516]
[1723856267239,0.084437,59225.0,59224.0,0.01143516]
[1723856267534,0.094437,59225.0,59224.0,0.00025325]
[1723856267743,0.104437,59225.0,59224.0,0.00025325]
[1723856268042,0.094437,59225.0,59224.0,0.00025325]
[1723856268431,0.084437,59225.0,59224.0,0.00025325]
[1723856268630,0.114437,59225.0,59224.0,0.00025325]
[1723856269028,0.084437,59225.0,59224.0,0.00025325]
[1723856271140,0.484437,59225.0,59224.0,0.00025325]
[1723856271739,0.084404,59220.0,59219.0,0.00017929]
[1723856273036,0.274444,59220.0,59219.0,0.00017929]
[1723856277447,0.865448,59220.0,59219.0,0.00017929]
[1723856277636,0.82732628,59220.0,59214.0,0.00025325]
[1723856277944,0.0494,59219.0,59214.0,0.00025325]
[1723856278140,0.445,59219.0,59214.0,0.00025325]
[1723856278631,0.084411,59215.0,59214.0,0.00025325]
[1723856278838,0.474411,59215.0,59214.0,0.00025325]
[1723856279037,0.474451,59215.0,59214.0,0.00025325]
[1723856280543,0.39004,59215.0,59211.0,0.084417]
[1723856282047,0.474452,59215.0,59211.0,0.084417]
[1723856282241,4e-05,59212.0,59211.0,0.084417]
[1723856282436,0.01004,59212.0,59211.0,0.084417]
[1723856283733,0.01004,59212.0,59211.0,0.09521091]
[1723856285837,0.094455,59212.0,59211.0,0.01079391]
[1723856286041,0.084418,59211.0,59208.0,0.3608]
[1723856286240,0.084419,59210.0,59208.0,0.3608]
[1723856286441,0.294419,59210.0,59208.0,0.37160823]
[1723856286842,0.0487,59209.0,59208.0,0.37160823]
[1723856287050,0.2387,59209.0,59208.0,0.37160823]
[1723856287246,0.23874,59209.0,59208.0,0.37160823]
[1723856288052,0.32316,59209.0,59208.0,0.37160823]
[1723856292749,0.32316,59209.0,59208.0,0.01080823]
[1723856292950,0.084421,59208.0,59207.0,0.00016979]
[1723856293256,0.414421,59208.0,59207.0,0.01122075]
[1723856294246,0.414461,59208.0,59207.0,0.01122075]
[1723856295445,0.775261,59208.0,59207.0,0.01122075]
[1723856297752,0.82561268,59208.0,59207.0,0.01122075]
[1723856299156,0.775261,59208.0,59207.0,0.01122075]
[1723856299864,0.892061,59208.0,59207.0,0.01122075]
[1723856302666,0.89222863,59208.0,59207.0,0.01122075]
[1723856304058,0.93842863,59208.0,59207.0,0.01122075]
[1723856305064,0.39757207,59208.0,59207.0,0.01122075]
[1723856305366,0.44700763,59208.0,59207.0,0.09564275]
[1723856306270,0.4975658,59208.0,59207.0,0.09564275]
[1723856306467,0.44700763,59208.0,59207.0,0.09564275]
[1723856307469,0.44700763,59208.0,59207.0,0.13280547]
[1723856308262,0.4975658,59208.0,59207.0,0.09564275]
[1723856308462,0.4975658,59208.0,59207.0,0.13280629]
[1723856308668,0.44700763,59208.0,59207.0,0.13280629]
[1723856308860,0.44700763,59208.0,59207.0,0.13280659]
[1723856309872,0.44700763,59208.0,59207.0,0.04838459]
[1723856311166,0.58200877,59208.0,59207.0,0.04838459]
[1723856311367,0.58200881,59208.0,59207.0,0.04838459]
[1723856311570,0.53142863,59208.0,59207.0,0.04838459]
[1723856312898,0.53142863,59208.0,59207.0,0.06120157]
[1723856313076,0.53142863,59208.0,59207.0,0.09836661]
[1723856313376,0.53142863,59208.0,59207.0,0.04838579]
[1723856313777,0.53142863,59208.0,59207.0,0.01122075]
[1723856315174,0.57762863,59208.0,59207.0,0.01122075]
[1723856315566,0.57762863,59208.0,59207.0,0.09836979]
[1723856315980,0.64499307,59208.0,59207.0,0.01122075]
[1723856316365,0.57762863,59208.0,59207.0,0.06120397]
[1723856316570,0.57762863,59208.0,59207.0,0.09836984]
[1723856316769,0.57762863,59208.0,59207.0,0.08731888]
[1723856317272,0.64499307,59208.0,59207.0,0.03733566]
[1723856317476,0.64499307,59208.0,59207.0,0.08731888]
[1723856318380,0.64499307,59208.0,59207.0,0.12448475]
[1723856318574,0.57762863,59208.0,59207.0,0.03733566]
[1723856318774,0.64511625,59208.0,59207.0,0.124485]
[1723856318965,0.57762863,59208.0,59207.0,0.03733566]
[1723856319169,0.64511667,59208.0,59207.0,0.03733566]
[1723856319369,0.64511667,59208.0,59207.0,0.07450199]
[1723856319571,0.57762863,59208.0,59207.0,0.03733566]
[1723856319880,0.58852576,59208.0,59207.0,0.03733566]
[1723856320266,0.58852576,59208.0,59207.0,0.08731888]
[1723856320467,0.58852576,59208.0,59207.0,0.12448547]
[1723856320681,0.58852576,59208.0,59207.0,0.05015301]
[1723856320976,0.65602603,59208.0,59207.0,0.07450225]
[1723856321178,0.65602603,59208.0,59207.0,0.00016979]
[1723856321382,0.58852576,59208.0,59207.0,0.12451892]
[1723856321676,0.58852576,59208.0,59207.0,0.07450165]
[1723856322280,0.6560349,59208.0,59207.0,0.07450165]
[1723856322467,0.6560349,59208.0,59207.0,0.07450092]
[1723856322885,0.58852576,59208.0,59207.0,0.07450092]
[1723856324778,0.58852576,59208.0,59207.0,0.07449995]
[1723856325478,0.65603968,59208.0,59207.0,0.07449995]
[1723856326466,0.58852576,59208.0,59207.0,0.12451472]
[1723856326675,0.64514401,59208.0,59207.0,0.07449995]
[1723856326875,0.57762863,59208.0,59207.0,0.07449995]
[1723856327084,0.62826253,59208.0,59207.0,0.14084906]
[1723856327384,0.62826233,59208.0,59207.0,0.14084906]
[1723856328074,0.62826233,59208.0,59207.0,0.14084739]
[1723856328277,0.62826233,59208.0,59207.0,0.14084572]
[1723856328680,0.44700763,59208.0,59207.0,0.14084572]
[1723856328982,0.44700763,59208.0,59207.0,0.28729565]
[1723856331482,0.44700763,59208.0,59207.0,0.35395245]
[1723856332672,0.44700763,59208.0,59207.0,0.25260356]
[1723856332878,0.44700763,59208.0,59207.0,0.3886567]
[1723856333074,0.44700763,59208.0,59207.0,0.26027374]
[1723856333276,0.44700763,59208.0,59207.0,0.28976864]
[1723856333576,0.44700763,59208.0,59207.0,0.39112345]
[1723856333777,0.44700763,59208.0,59207.0,0.4553145]
[1723856334391,0.33020763,59208.0,59207.0,0.38865592]
[1723856334583,0.44700763,59208.0,59207.0,0.38865592]
[1723856334889,0.33020763,59208.0,59207.0,0.74945592]
[1723856335388,0.44700763,59208.0,59207.0,0.74945592]
[1723856335580,0.44700763,59208.0,59207.0,0.38865592]
[1723856335776,0.44700763,59208.0,59207.0,0.74945592]
[1723856336771,0.44700763,59208.0,59207.0,0.7122906]
[1723856336976,0.44700763,59208.0,59207.0,0.7494535]
[1723856337378,0.44700763,59208.0,59207.0,0.74945122]
[1723856337982,0.44700763,59208.0,59207.0,0.81609486]
[1723856338283,0.44700763,59208.0,59207.0,0.71473989]
[1723856338484,0.44700763,59208.0,59207.0,0.64809625]
[1723856339479,0.44700763,59208.0,59207.0,0.71474862]
[1723856339683,0.44700763,59208.0,59207.0,0.64809625]
[1723856340603,0.44700763,59208.0,59207.0,0.44539179]
[1723856340792,0.44700763,59208.0,59207.0,0.64809709]
[1723856342084,0.44700763,59208.0,59207.0,0.28729709]
[1723856343885,0.44700763,59208.0,59207.0,0.71477361]
[1723856344179,0.44700763,59208.0,59207.0,0.35397449]
[1723856344379,0.44700763,59208.0,59207.0,0.28978367]
[1723856344580,0.58206233,59208.0,59207.0,0.1887003]
[1723856344786,0.53142863,59208.0,59207.0,0.07449546]
[1723856345091,0.59894401,59208.0,59207.0,0.07449546]
[1723856345292,0.59894401,59208.0,59207.0,0.07449957]
[1723856345488,0.95974401,59208.0,59207.0,0.07449957]
[1723856345688,0.53142863,59208.0,59207.0,0.07449957]
[1723856347600,0.58204019,59208.0,59207.0,0.07449957]
[1723856347892,0.53142863,59208.0,59207.0,0.07449957]
[1723856348294,0.58204019,59208.0,59207.0,0.07449957]
[1723856348490,0.53142863,59208.0,59207.0,0.07449957]
[1723856349492,0.58204019,59208.0,59207.0,0.07449957]
[1723856350901,0.53142863,59208.0,59207.0,0.13869092]
[1723856351193,0.53142863,59208.0,59207.0,0.2695576]
[1723856351397,0.53142863,59208.0,59207.0,0.20288152]
[1723856351598,0.33020763,59208.0,59207.0,0.20288152]
[1723856351791,0.33020763,59208.0,59207.0,0.10152384]
[1723856351792,0.44700763,59208.0,59207.0,0.10152384]
[1723856352003,0.44700763,59208.0,59207.0,0.20287674]
[1723856354203,0.44700763,59208.0,59207.0,0.13868539]
[1723856354792,0.44700763,59208.0,59207.0,0.20287552]
[1723856355205,0.44700763,59208.0,59207.0,0.20541613]
[1723856355500,0.49763635,59208.0,59207.0,0.20287637]
[1723856355999,0.49763635,59208.0,59207.0,0.03733284]
[1723856356199,0.44700763,59208.0,59207.0,0.14123022]
[1723856356399,0.44700763,59208.0,59207.0,0.07449587]
[1723856356590,0.44700763,59208.0,59207.0,0.49948649]
[1723856356792,0.44700763,59208.0,59207.0,0.20542418]
[1723856356995,0.44700763,59208.0,59207.0,0.14123269]
[1723856357300,0.41462863,59208.0,59207.0,0.14123269]
[1723856357505,0.53142863,59208.0,59207.0,0.14123269]
[1723856357805,0.53142863,59208.0,59207.0,0.07449587]
[1723856358302,0.53142863,59208.0,59207.0,0.14123269]
[1723856358692,0.53142863,59208.0,59207.0,0.07449587]
[1723856358899,0.53142863,59208.0,59207.0,0.14123269]
[1723856360006,0.53142863,59208.0,59207.0,0.20542399]
[1723856360301,0.53142863,59208.0,59207.0,0.14123269]
[1723856360506,0.53142863,59208.0,59207.0,0.07449587]
[1723856361104,0.53142863,59208.0,59207.0,0.14123269]
[1723856362703,0.53142863,59208.0,59207.0,0.07449587]
[1723856363306,0.59894401,59208.0,59207.0,0.07449587]
[1723856364103,0.59894401,59208.0,59207.0,0.12455235]
[1723856364305,0.53142863,59208.0,59207.0,0.05022726]
[1723856364507,0.59894321,59208.0,59207.0,0.07450239]
[1723856364707,0.59894321,59208.0,59207.0,0.1245558]
[1723856364903,0.59894321,59208.0,59207.0,0.12455577]
[1723856365412,0.59894321,59208.0,59207.0,0.07450239]
[1723856365609,0.59894321,59208.0,59207.0,0.12455702]
[1723856366307,0.59894321,59208.0,59207.0,0.1245587]
[1723856367209,0.59894321,59208.0,59207.0,0.07450239]
[1723856367608,0.59894321,59208.0,59207.0,0.12457677]
[1723856367807,0.89222863,59208.0,59207.0,0.07450239]
[1723856368403,0.89222863,59208.0,59207.0,0.07450759]
[1723856368404,0.97660328,59208.0,59207.0,0.07450759]
[1723856368710,1.06102428,59208.0,59207.0,0.03733866]
[1723856369105,0.97664963,59208.0,59207.0,0.00016979]
[1723856369305,1.06102502,59208.0,59207.0,0.03733893]
[1723856369505,0.084428,59203.0,59202.0,0.05007438]
[1723856369708,0.892028,59203.0,59202.0,0.0743407]
[1723856370799,0.976496,59203.0,59202.0,0.0743407]
[1723856371305,0.976496,59203.0,59202.0,0.03717053]
[1723856371706,1.483216,59203.0,59202.0,0.03717053]
[1723856372305,0.084435,59198.0,59197.0,0.05007438]
[1723856372615,0.557394,59198.0,59197.0,0.1243825]
[1723856373300,0.641829,59198.0,59197.0,0.1243825]
[1723856373501,0.591275,59198.0,59197.0,0.07434324]
[1723856374320,0.591275,59198.0,59197.0,0.03717162]
[1723856376311,0.591275,59198.0,59193.0,0.06098671]
[1723856376312,0.084441,59194.0,59193.0,0.01094745]
[1723856376507,0.44194672,59194.0,59193.0,0.03717454]
[1723856377517,0.084447,59190.0,59189.0,0.05003926]
[1723856377712,0.201247,59190.0,59189.0,0.07435092]
[1723856377909,0.381247,59190.0,59189.0,0.07435092]
[1723856378511,0.381247,59190.0,59189.0,0.0851277]
[1723856378817,0.381287,59190.0,59189.0,0.0851277]
[1723856379426,0.381287,59190.0,59189.0,0.04795224]
[1723856379916,0.381287,59190.0,59189.0,0.01077678]
[1723856380119,0.084449,59188.0,59187.0,0.00017165]
[1723856380320,0.274449,59188.0,59187.0,0.07452415]
[1723856380514,0.274449,59188.0,59187.0,0.0373479]
[1723856380708,0.274449,59188.0,59187.0,0.11170032]
[1723856381315,0.274489,59188.0,59187.0,0.07452407]
[1723856381514,0.274489,59188.0,59187.0,0.03734786]
[1723856382522,0.274489,59188.0,59187.0,0.04837556]
[1723856382920,0.274489,59188.0,59187.0,0.17271035]
[1723856383217,0.274489,59188.0,59187.0,0.08555269]
[1723856384117,0.274489,59188.0,59187.0,0.13553324]
[1723856384514,0.274489,59188.0,59187.0,0.08555269]
[1723856384710,0.274489,59188.0,59187.0,0.04837556]
[1723856384914,0.274489,59188.0,59187.0,0.08555273]
[1723856385120,0.274489,59188.0,59187.0,0.04837556]
[1723856388520,0.274489,59188.0,59187.0,0.01119935]
[1723856389425,0.19004,59188.0,59187.0,0.75921153]
[1723856389623,0.19004,59188.0,59187.0,0.20235098]
[1723856389819,0.19004,59188.0,59187.0,0.2690878]
[1723856390221,0.19004,59188.0,59187.0,0.3535388]
[1723856392628,0.19004,59188.0,59187.0,0.28680198]
[1723856392827,0.19004,59188.0,59187.0,0.21245035]
[1723856393023,0.19004,59188.0,59187.0,0.28679599]
[1723856394316,0.28014192,59194.0,59193.0,0.084442]
[1723856394317,0.00014192,59194.0,59193.0,0.084442]
[1723856394518,0.01,59200.0,59193.0,1.20139617]
[1723856394715,0.1168,59203.0,59202.0,0.08443]
[1723856395214,0.1168,59203.0,59202.0,0.18831591]
[1723856395414,0.12684036,59203.0,59202.0,0.12159536]
[1723856396727,0.12684036,59203.0,59202.0,0.08443]
[1723856397625,0.12684036,59203.0,59202.0,0.12159516]
[1723856397928,0.12684036,59203.0,59202.0,0.12159549]
[1723856398122,0.01004036,59203.0,59202.0,0.13270409]
[1723856398430,0.12684036,59203.0,59202.0,0.16986885]
[1723856398723,0.12684036,59203.0,59202.0,0.13270409]
[1723856399521,0.12684036,59203.0,59202.0,0.21986988]
[1723856399723,0.12684036,59203.0,59202.0,0.14553943]
[1723856400028,0.12684036,59203.0,59202.0,0.0955386]
[1723856400221,0.12684036,59203.0,59202.0,0.0930386]
[1723856403015,4.036e-05,59203.0,59202.0,0.0930386]
[1723856403215,0.0093667,59203.0,59202.0,0.52816866]
[1723856403622,0.0068667,59203.0,59202.0,0.52816866]
[1723856404227,0.0068667,59203.0,59202.0,0.55772418]
[1723856404531,0.0068667,59203.0,59202.0,0.52816477]
[1723856404733,0.0068667,59203.0,59202.0,0.49100363]
[1723856405026,0.0068667,59203.0,59202.0,0.52816519]
[1723856405530,0.1168,59205.0,59204.0,0.084427]
[1723856405727,0.1168,59205.0,59204.0,0.15875359]
[1723856407733,0.04795325,59208.0,59204.0,0.15875359]
[1723856407734,0.16475325,59208.0,59207.0,0.084422]
[1723856407932,0.16475325,59208.0,59207.0,0.51954859]
[1723856408518,0.16475325,59208.0,59207.0,0.445222]
[1723856408726,0.16475325,59208.0,59207.0,0.48238299]
[1723856408921,0.34475325,59208.0,59207.0,0.48238299]
[1723856409130,0.34475325,59208.0,59207.0,0.3608]
[1723856409724,0.34475325,59208.0,59197.0,0.00025325]
[1723856409921,0.1168,59198.0,59197.0,0.08468925]
[1723856410121,0.1168,59198.0,59197.0,0.20895567]
[1723856410530,0.084429,59203.0,59200.0,0.084432]
[1723856410738,0.1433885,59208.0,59200.0,0.084432]
[1723856410927,0.084422,59207.0,59201.0,0.3608]
[1723856411229,0.1168,59202.0,59201.0,0.3608]
[1723856412528,0.084424,59206.0,59202.0,0.084429]
[1723856412733,0.1168,59205.0,59204.0,0.3608]
[1723856412920,0.1168,59205.0,59204.0,0.43512718]
[1723856413120,0.1168,59205.0,59204.0,0.4850889]
[1723856413731,0.1168,59205.0,59204.0,0.43512718]
[1723856413928,0.084423,59207.0,59204.0,0.4850889]
[1723856414127,0.264423,59207.0,59205.0,0.07432718]
[1723856414329,0.264423,59207.0,59206.0,0.0371635]
[1723856414528,0.264423,59207.0,59204.0,0.42175286]
[1723856414731,0.264423,59207.0,59204.0,0.37179114]
[1723856415726,4e-05,59205.0,59204.0,0.37179114]
[1723856415927,4e-05,59205.0,59204.0,0.44611817]
[1723856416235,4e-05,59205.0,59204.0,0.46383138]
[1723856416531,4e-05,59205.0,59204.0,0.44611817]
[1723856417121,4e-05,59205.0,59204.0,0.45609086]
[1723856417325,4e-05,59205.0,59204.0,0.53041679]
[1723856417623,4e-05,59205.0,59204.0,0.40895411]
[1723856417936,4e-05,59205.0,59204.0,0.4638292]
[1723856418133,4e-05,59205.0,59204.0,0.51283397]
[1723856418930,4e-05,59205.0,59204.0,0.51283471]
[1723856419722,4e-05,59205.0,59204.0,0.44611727]
[1723856419922,0.22004,59205.0,59204.0,0.53054427]
[1723856421233,0.22004,59205.0,59204.0,0.45621814]
[1723856421424,0.22004,59205.0,59204.0,0.52297479]
[1723856421625,0.22004,59205.0,59204.0,0.56013833]
[1723856421823,0.22004,59205.0,59204.0,0.49338168]
[1723856422532,0.22004,59205.0,59204.0,0.53054413]
[1723856424442,0.22004,59205.0,59204.0,0.16974413]
[1723856424627,0.22004,59205.0,59204.0,0.74258826]
[1723856424832,0.22004,59205.0,59204.0,0.45621814]
[1723856425730,0.22004,59205.0,59204.0,0.09541814]
[1723856425930,0.22004,59205.0,59204.0,0.45621814]
[1723856427042,0.22004,59205.0,59204.0,0.09541814]
[1723856427043,0.2706038,59205.0,59204.0,0.09541814]
[1723856428136,0.22004,59205.0,59204.0,0.09541814]
[1723856428339,0.2706038,59205.0,59204.0,0.01099114]
[1723856428640,0.2706038,59205.0,59202.0,0.3608]
[1723856429240,0.2706038,59205.0,59203.0,0.03716472]
[1723856429438,0.22004,59205.0,59202.0,0.3608]
[1723856429642,0.22004,59205.0,59203.0,0.07432928]
[1723856429830,0.22004,59205.0,59202.0,0.44523]
[1723856430142,0.22004,59205.0,59203.0,0.0743274]
[1723856430332,0.22004,59205.0,59204.0,0.0743274]
[1723856432041,0.22004,59205.0,59204.0,0.4351274]